fUSD/lending_fUSD_20250103
["ID","MTS","AMOUNT","RATE_DAILY","PERIOD"]
[347574962,1735921856799,-500.0,0.00012056,2]
[347574963,1735921856810,-2015.34,0.00012056,2]
[347574964,1735921856820,-500.0,0.00012056,2]
[347574965,1735921856829,-1719.7,0.00012056,2]
[347574966,1735921856839,-500.0,0.00012056,2]
[347574967,1735921856850,-500.0,0.00012056,2]
[347574968,1735921856859,-500.0,0.00012056,2]
[347574969,1735921856869,-557.05,0.00012056,2]
[347574970,1735921856878,-321.4,0.00012056,2]
[347574971,1735921856887,-500.0,0.00012056,2]
[347574972,1735921856897,-500.0,0.00012056,2]
[347574973,1735921856906,-500.0,0.00012056,2]
[347574974,1735921856915,-500.0,0.00012056,2]
[347574975,1735921856924,-500.0,0.00012056,2]
[347574976,1735921856934,-1995.29,0.00012056,2]
[347574977,1735921856943,-500.0,0.00012056,2]
[347574978,1735921856953,-670.73,0.00012056,2]
[347574979,1735921856962,-500.0,0.00012056,2]
[347574980,1735921856971,-842.12,0.00012056,2]
[347574981,1735921856981,-884.35,0.00012056,2]
[347574982,1735921856990,-1909.87,0.00012057,2]
[347574983,1735921857000,-1909.87,0.00012057,2]
[347574984,1735921857009,-310.48630509,0.00012057,2]
[347574985,1735921857019,-500.0,0.00012057,2]
[347574986,1735921857028,-500.0,0.00012057,2]
[347574987,1735921857037,-2021.04,0.00012057,2]
[347574988,1735921857046,-500.0,0.00012057,2]
[347574989,1735921857058,-500.0,0.00012058,2]
[347574990,1735921857067,-512.5,0.00012058,2]
[347574991,1735921857076,-500.0,0.00012058,2]
[347574992,1735921857085,-788.04,0.00012058,2]
[347574993,1735921857095,-1033.89,0.00012058,2]
[347574994,1735921857104,-961.38,0.00012059,2]
[347574995,1735921857113,-951.38,0.00012059,2]
[347574996,1735921857123,-1041.75,0.00012059,2]
[347574997,1735921857132,-500.0,0.00012059,2]
[347574998,1735921857142,-500.0,0.00012059,2]
[347574999,1735921857151,-500.0,0.00012059,2]
[347575000,1735921857160,-1500.0,0.00012059,2]
[347575001,1735921857169,-743.52,0.00012059,2]
[347575002,1735921857179,-500.0,0.00012059,2]
[347575003,1735921857188,-29999.99,0.00012087,2]
[347575004,1735921857198,-1200.0,0.00012088,2]
[347575005,1735921857207,-299.1520682,0.00012151,2]
[347575006,1735921857218,-5830.54752845,0.00012151,2]
[347575007,1735921857228,-163.91550218,0.00012199,2]
[347575008,1735921857237,-158.87046429,0.00012202,2]
[347575009,1735921857246,-500.0,0.00012207,2]
[347575010,1735921857255,-1127.61,0.00012207,2]
[347575011,1735921857265,-5011.72499502,0.00012214,2]
[347575012,1735921857275,-429.51484354,0.00012223,2]
[347575013,1735921857285,-190.9796,0.00012229,2]
[347575014,1735921857295,-1000.0,0.00012229,2]
[347575015,1735921857304,-500.0,0.00012261,2]
[347575016,1735921857315,-540.6007132,0.00012261,2]
[347575017,1735921857325,-1107.45,0.00012261,2]
[347575018,1735921857335,-777.43064898,0.00012299,2]
[347575019,1735921857344,-218.30892328,0.00012299,2]
[347575020,1735921857354,-5830.54752845,0.00012299,2]
[347575021,1735921857363,-722.62203031,0.00012299,2]
[347575022,1735921857373,-218.30892328,0.000123,2]
[347575023,1735921857382,-218.30892328,0.000123,2]
[347575024,1735921857392,-150.0,0.00012317,2]
[347575025,1735921857401,-5347.40351839,0.00012327,2]
[347575026,1735921857640,-5495.99154902,0.00012327,2]
[347575027,1735921857659,-436.14,0.00010137,2]
[347575028,1735921857669,-1696.22926127,0.00012327,2]
[347575029,1735921857678,-277.35,0.00012329,2]
[347575030,1735921857688,-277.35,0.00012329,2]
[347575031,1735921857697,-277.35,0.00012329,2]
[347575032,1735921857706,-277.35,0.00012329,2]
[347575033,1735921857715,-277.35,0.00012329,2]
[347575034,1735921857724,-277.35,0.00012329,2]
[347575035,1735921857734,-328.726308,0.00012329,2]
[347575036,1735921857744,-277.35,0.00012329,2]
[347575037,1735921857754,-277.35,0.00012329,2]
[347575038,1735921857765,-277.35,0.00012329,2]
[347575039,1735921857777,-277.35,0.00012329,2]
[347575040,1735921857787,-500.0,0.00012329,2]
[347575041,1735921857799,-491.28027281,0.00012329,2]
[347575042,1735921857814,-533.693064,0.00012329,2]
[347575043,1735921857824,-9.68778504,0.00012329,2]
[347575044,1735921857837,-886.51395682,0.00012329,2]
[347575045,1735921857851,-63.06825814,0.00012329,2]
[347575046,1735921857862,-261.46364186,0.00012329,2]
[347575047,1735921857878,-238.53635814,0.00012329,2]
[347575048,1735921857888,-533.56172186,0.00012329,2]
[347575049,1735921857902,-511.42851514,0.00012329,2]
[347575050,1735921857914,-500.0,0.00012329,2]
[347575051,1735921857924,-1315.34,0.00012329,2]
[347575052,1735921857933,-500.0,0.00012329,2]
[347575053,1735921857942,-414.16542526,0.00012329,2]
[347575054,1735921857954,-93.92457474,0.00012329,2]
[347575055,1735921857963,-541.58,0.00012329,2]
[347575056,1735921857972,-500.0,0.00012329,2]
[347575057,1735921857982,-1092.45,0.00012329,2]
[347575058,1735921857992,-500.0,0.00012329,2]
[347575059,1735921858002,-1027.33,0.00012329,2]
[347575060,1735921858012,-500.0,0.00012329,2]
[347575061,1735921858022,-500.0,0.00012329,2]
[347575062,1735921858032,-549.1,0.00012329,2]
[347575063,1735921858041,-482.97170649,0.00012329,2]
[347575064,1735921858053,-255.19829351,0.00012329,2]
[347575065,1735921858067,-500.0,0.00012329,2]
[347575066,1735921858077,-500.0,0.00012329,2]
[347575067,1735921858086,-591.86,0.00012329,2]
[347575068,1735921858097,-101.78995962,0.00012329,2]
[347575069,1735921858108,-398.21004038,0.00012329,2]
[347575070,1735921858118,-1.57577813,0.00012329,2]
[347575071,1735921858129,-903.97839159,0.00012329,2]
[347575072,1735921858142,-142.45583028,0.00012329,2]
[347575073,1735921858151,-500.0,0.00012329,2]
[347575074,1735921858161,-500.0,0.00012329,2]
[347575075,1735921858170,-500.0,0.00012329,2]
[347575076,1735921858182,-588.33,0.00012329,2]
[347575077,1735921858192,-500.0,0.00012329,2]
[347575078,1735921858201,-895.81,0.00012329,2]
[347575079,1735921858211,-1466.37,0.00012329,2]
[347575080,1735921858221,-606.31943147,0.00012329,2]
[347575081,1735921858232,-261.18056853,0.00012329,2]
[347575082,1735921858242,-553.12,0.00012329,2]
[347575083,1735921858252,-500.0,0.00012329,2]
[347575084,1735921858262,-500.0,0.00012329,2]
[347575085,1735921858272,-938.38,0.00012329,2]
[347575086,1735921858281,-683.76,0.00012329,2]
[347575087,1735921858291,-170.71454151,0.00012329,2]
[347575088,1735921858307,-329.28545849,0.00012329,2]
[347575089,1735921858317,-500.0,0.00012329,2]
[347575090,1735921858328,-500.0,0.00012329,2]
[347575091,1735921858338,-500.0,0.0001233,2]
[347575092,1735921858349,-500.0,0.0001233,2]
[347575093,1735921858359,-500.0,0.0001233,2]
[347575094,1735921858369,-500.0,0.0001233,2]
[347575095,1735921858378,-476.54503313,0.0001233,2]
[347575096,1735921858390,-536.33496687,0.0001233,2]
[347575097,1735921858400,-573.55,0.0001233,2]
[347575098,1735921858410,-500.0,0.0001233,2]
[347575099,1735921858420,-2015.34,0.0001233,2]
[347575100,1735921858430,-500.0,0.0001233,2]
[347575101,1735921858439,-1719.7,0.0001233,2]
[347575102,1735921858449,-500.0,0.0001233,2]
[347575103,1735921858459,-500.0,0.0001233,2]
[347575104,1735921858469,-500.0,0.0001233,2]
[347575105,1735921858479,-557.05,0.0001233,2]
[347575106,1735921858489,-500.0,0.0001233,2]
[347575107,1735921858499,-500.0,0.0001233,2]
[347575108,1735921858509,-500.0,0.0001233,2]
[347575109,1735921858519,-500.0,0.0001233,2]
[347575110,1735921858529,-500.0,0.0001233,2]
[347575111,1735921858539,-1995.29,0.0001233,2]
[347575112,1735921858549,-500.0,0.0001233,2]
[347575113,1735921858560,-670.73,0.0001233,2]
[347575114,1735921858570,-500.0,0.0001233,2]
[347575115,1735921858581,-842.12,0.0001233,2]
[347575116,1735921858591,-884.35,0.0001233,2]
[347575117,1735921858602,-1909.87,0.00012331,2]
[347575118,1735921858613,-1909.87,0.00012331,2]
[347575119,1735921858622,-500.0,0.00012331,2]
[347575120,1735921858632,-500.0,0.00012331,2]
[347575121,1735921858643,-2021.04,0.00012331,2]
[347575122,1735921858653,-500.0,0.00012331,2]
[347575123,1735921858663,-500.0,0.00012332,2]
[347575124,1735921858674,-512.5,0.00012332,2]
[347575125,1735921858683,-500.0,0.00012332,2]
[347575126,1735921858693,-788.04,0.00012332,2]
[347575127,1735921858703,-1033.89,0.00012332,2]
[347575128,1735921858712,-328.726308,0.00012333,2]
[347575129,1735921858723,-390921.71402995,0.00012333,2]
[347575130,1735921858733,-961.38,0.00012333,2]
[347575131,1735921858743,-951.38,0.00012333,2]
[347575132,1735921858753,-1041.75,0.00012333,2]
[347575133,1735921858763,-500.0,0.00012333,2]
[347575134,1735921858775,-500.0,0.00012333,2]
[347575135,1735921858785,-500.0,0.00012333,2]
[347575136,1735921858795,-743.52,0.00012333,2]
[347575137,1735921858806,-500.0,0.00012333,2]
[347575138,1735921858818,-722.62203031,0.0001235,2]
[347575139,1735921858829,-189445.31296375,0.0001235,2]
[347575140,1735921858839,-500.0,0.00012362,2]
[347575141,1735921858850,-2390.0,0.00012367,2]
[347575142,1735921858860,-150.0,0.00012373,2]
[347575143,1735921858871,-5000.0,0.00012379,2]
[347575144,1735921858881,-150.0,0.00012384,2]
[347575145,1735921858891,-150.0,0.00012384,2]
[347575146,1735921858902,-592.6830519,0.00012393,2]
[347575147,1735921858912,-4371.2593062,0.00012393,2]
[347575148,1735921858922,-500.0,0.00012398,2]
[347575149,1735921858932,-1000.0,0.00012398,2]
[347575150,1735921858942,-146356.68326087,0.00012399,2]
[347575151,1735921858951,-146356.68326079,0.00012399,2]
[347575152,1735921858961,-146356.68326079,0.00012399,2]
[347575153,1735921858971,-146356.68326079,0.00012399,2]
[347575154,1735921858982,-146356.68326079,0.00012399,2]
[347575155,1735921858991,-146356.68326079,0.00012399,2]
[347575156,1735921859001,-146356.68326079,0.00012399,2]
[347575157,1735921859011,-103101.25334641,0.00012399,2]
[347575159,1735921904169,5000.0,0.00012,30]
[347575160,1735921915114,5000.0,0.00012,30]
[347575161,1735921924559,5000.0,0.00012,30]
[347575162,1735921932725,5000.0,0.00012,30]
[347575163,1735921944304,5000.0,0.00012,30]
[347575164,1735921961370,978.46,0.00012,30]
[347575166,1735922103324,174.0,0.00012,30]
[347575167,1735922103464,160.0,0.00012,30]
[347575168,1735922103672,174.0,0.00012526,30]
[347575169,1735922114373,13513.54,0.0001301,29]
[347575171,1735922250791,150.0,0.00019628,120]
[347575172,1735922371387,150.0,0.00019174,120]
[347575173,1735922403903,157.0,0.00012,30]
[347575174,1735922411183,160.0,0.00012,30]
[347575175,1735922430826,150.0,0.0001619,120]
[347575176,1735922551845,150.0,0.00018576,120]
[347575177,1735922670808,150.0,0.00019032,120]
[347575179,1735922704169,160.0,0.00012,30]
[347575180,1735922704523,157.0,0.00012,30]
[347575207,1735923003716,160.0,0.00012,30]
[347575208,1735923004079,157.0,0.00012,30]
[347575223,1735923031442,-916.93198961,8.219e-05,2]
[347575224,1735923031455,-92.37801039,8.219e-05,2]
[347575225,1735923031465,-250.0,8.531e-05,2]
[347575226,1735923031475,-258.04,8.572e-05,2]
[347575227,1735923031485,-974.35998661,8.582e-05,2]
[347575228,1735923031496,-25.64001339,8.582e-05,2]
[347575229,1735923031506,-300.0,8.607e-05,2]
[347575230,1735923031515,-250.0,8.608e-05,2]
[347575231,1735923031524,-9260.95998661,8.608e-05,2]
[347575232,1735923034373,-985.776982,8.608e-05,2]
[347575233,1735923034385,-1292.5814419,8.608e-05,2]
[347575234,1735923034397,-4840.72047788,8.608e-05,2]
[347575235,1735923034409,-657.06304061,8.608e-05,2]
[347575236,1735923034447,-1708.09054089,8.608e-05,2]
[347575237,1735923034456,-172.43,8.69e-05,2]
[347575238,1735923034467,-8117.47945911,8.723e-05,2]
[347575239,1735923034506,-437.7779378,8.723e-05,2]
[347575240,1735923034518,-1204.56856532,8.723e-05,2]
[347575241,1735923034529,-604.32310367,8.723e-05,2]
[347575242,1735923034542,-507.1509341,8.723e-05,2]
[347575243,1735923034552,-185.62406605,8.758e-05,2]
[347575244,1735923034564,-348.89010204,8.758e-05,2]
[347575245,1735923034577,-770.51012307,8.758e-05,2]
[347575246,1735923034587,-9721.0,9.119e-05,2]
[347575247,1735923034596,-503.5,9.153e-05,2]
[347575248,1735923034606,-490.42,9.179e-05,2]
[347575249,1735923034616,-150.99,9.179e-05,2]
[347575250,1735923034625,-1324.92,9.179e-05,2]
[347575251,1735923034635,-492.77,9.218e-05,2]
[347575252,1735923034646,-502.0,9.316e-05,2]
[347575253,1735923034655,-495.18,9.316e-05,2]
[347575254,1735923034665,-499.09,9.316e-05,2]
[347575255,1735923034675,-495.3,9.316e-05,2]
[347575256,1735923034684,-490.69,9.316e-05,2]
[347575257,1735923034694,-502.72,9.316e-05,2]
[347575258,1735923034703,-491.92,9.316e-05,2]
[347575259,1735923034713,-493.4,9.316e-05,2]
[347575260,1735923034722,-506.45,9.316e-05,2]
[347575261,1735923034732,-778.24,9.316e-05,2]
[347575262,1735923034741,-1460.39,9.316e-05,2]
[347575264,1735923034751,-2953.86,9.316e-05,2]
[347575266,1735923034760,-500.0,9.316e-05,2]
[347575267,1735923034769,-500.0,9.316e-05,2]
[347575269,1735923034778,-500.0,9.316e-05,2]
[347575271,1735923034787,-1524.13,9.316e-05,2]
[347575272,1735923034796,-500.0,9.316e-05,2]
[347575274,1735923034806,-500.0,9.316e-05,2]
[347575276,1735923034816,-500.0,9.316e-05,2]
[347575278,1735923034826,-500.0,9.316e-05,2]
[347575280,1735923034835,-500.0,9.316e-05,2]
[347575282,1735923034844,-395.04,9.316e-05,2]
[347575283,1735923034854,-1000.0,9.316e-05,2]
[347575285,1735923034863,-500.0,9.316e-05,2]
[347575287,1735923034872,-500.0,9.316e-05,2]
[347575289,1735923034882,-500.0,9.316e-05,2]
[347575292,1735923034892,-678.24,9.316e-05,2]
[347575293,1735923034901,-764.42,9.316e-05,2]
[347575295,1735923034910,-504.92,9.316e-05,2]
[347575297,1735923034919,-499.73,9.316e-05,2]
[347575299,1735923034930,-494.62,9.316e-05,2]
[347575303,1735923034940,-200.0,9.33e-05,2]
[347575305,1735923034950,-420.0,9.467e-05,2]
[347575308,1735923034959,-500.84,9.468e-05,2]
[347575311,1735923034968,-1129.1509,9.489e-05,2]
[347575314,1735923034978,-1943.0607,9.489e-05,2]
[347575317,1735923034987,-5000.0,9.489e-05,2]
[347575320,1735923034996,-500.0,9.587e-05,2]
[347575322,1735923035006,-500.0,9.587e-05,2]
[347575324,1735923035016,-500.0,9.587e-05,2]
[347575326,1735923035025,-500.0,9.587e-05,2]
[347575328,1735923035035,-500.0,9.587e-05,2]
[347575330,1735923035044,-500.0,9.587e-05,2]
[347575332,1735923035053,-500.0,9.587e-05,2]
[347575334,1735923035063,-501.09327668,9.588e-05,2]
[347575336,1735923035075,-500.77021444,9.588e-05,2]
[347575338,1735923035084,-500.0,9.588e-05,2]
[347575340,1735923035094,-500.0,9.588e-05,2]
[347575342,1735923035103,-500.0,9.588e-05,2]
[347575344,1735923035113,-500.0,9.588e-05,2]
[347575346,1735923035122,-500.0,9.588e-05,2]
[347575348,1735923035132,-500.0,9.588e-05,2]
[347575350,1735923035141,-500.0,9.588e-05,2]
[347575352,1735923035151,-500.0,9.588e-05,2]
[347575354,1735923035161,-500.0,9.588e-05,2]
[347575356,1735923035172,-500.0,9.588e-05,2]
[347575358,1735923035181,-644.74,9.588e-05,2]
[347575360,1735923035190,-500.0,9.588e-05,2]
[347575362,1735923035203,-500.0,9.588e-05,2]
[347575364,1735923035212,-500.0,9.588e-05,2]
[347575366,1735923035221,-500.0,9.588e-05,2]
[347575368,1735923035231,-500.0,9.588e-05,2]
[347575370,1735923035241,-500.0,9.588e-05,2]
[347575372,1735923035250,-500.0,9.588e-05,2]
[347575374,1735923035259,-500.0,9.588e-05,2]
[347575376,1735923035269,-500.0,9.588e-05,2]
[347575377,1735923035278,-500.0,9.588e-05,2]
[347575379,1735923035287,-500.0,9.588e-05,2]
[347575381,1735923035296,-500.0,9.588e-05,2]
[347575383,1735923035305,-615.02,9.588e-05,2]
[347575385,1735923035314,-500.0,9.588e-05,2]
[347575387,1735923035324,-500.0,9.588e-05,2]
[347575389,1735923035334,-500.0,9.588e-05,2]
[347575391,1735923035344,-500.0,9.588e-05,2]
[347575393,1735923035353,-500.0,9.588e-05,2]
[347575395,1735923035362,-500.0,9.588e-05,2]
[347575397,1735923035371,-500.0,9.588e-05,2]
[347575399,1735923035381,-500.0,9.588e-05,2]
[347575401,1735923035391,-500.0,9.588e-05,2]
[347575403,1735923035400,-500.0,9.588e-05,2]
[347575405,1735923035409,-500.0,9.588e-05,2]
[347575407,1735923035419,-500.0,9.588e-05,2]
[347575409,1735923035428,-500.0,9.588e-05,2]
[347575411,1735923035438,-500.0,9.588e-05,2]
[347575413,1735923035447,-500.0,9.588e-05,2]
[347575415,1735923035457,-500.0,9.588e-05,2]
[347575417,1735923035466,-500.0,9.588e-05,2]
[347575419,1735923035474,-500.0,9.588e-05,2]
[347575421,1735923035484,-500.0,9.588e-05,2]
[347575423,1735923035493,-500.0,9.588e-05,2]
[347575425,1735923035502,-500.0,9.588e-05,2]
[347575427,1735923035511,-500.0,9.588e-05,2]
[347575429,1735923035520,-500.0,9.588e-05,2]
[347575431,1735923035529,-500.0,9.588e-05,2]
[347575433,1735923035537,-500.0,9.588e-05,2]
[347575435,1735923035547,-500.0,9.588e-05,2]
[347575437,1735923035556,-500.0,9.588e-05,2]
[347575439,1735923035564,-500.0,9.588e-05,2]
[347575441,1735923035574,-160.18952003,9.588e-05,2]
[347575443,1735923035583,-612.05,9.588e-05,2]
[347575445,1735923035592,-500.0,9.588e-05,2]
[347575447,1735923035601,-500.0,9.588e-05,2]
[347575449,1735923035610,-500.0,9.588e-05,2]
[347575451,1735923035620,-500.0,9.588e-05,2]
[347575453,1735923035629,-500.0,9.588e-05,2]
[347575455,1735923035638,-500.0,9.588e-05,2]
[347575457,1735923035646,-500.0,9.588e-05,2]
[347575459,1735923035656,-618.68,9.588e-05,2]
[347575461,1735923035665,-500.0,9.588e-05,2]
[347575463,1735923035674,-500.0,9.588e-05,2]
[347575464,1735923035684,-500.0,9.588e-05,2]
[347575466,1735923035693,-500.0,9.588e-05,2]
[347575468,1735923035702,-500.0,9.588e-05,2]
[347575470,1735923035712,-500.0,9.588e-05,2]
[347575472,1735923035722,-500.0,9.588e-05,2]
[347575474,1735923035731,-618.73,9.588e-05,2]
[347575476,1735923035742,-500.0,9.588e-05,2]
[347575478,1735923035751,-500.0,9.588e-05,2]
[347575480,1735923035760,-500.0,9.588e-05,2]
[347575482,1735923035770,-500.0,9.588e-05,2]
[347575484,1735923035779,-500.0,9.588e-05,2]
[347575486,1735923035789,-568.68,9.588e-05,2]
[347575489,1735923035798,-495.72300944,9.588e-05,2]
[347575490,1735923035806,-500.0,9.588e-05,2]
[347575493,1735923035817,-500.0,9.588e-05,2]
[347575494,1735923035826,-500.0,9.588e-05,2]
[347575496,1735923035835,-500.0,9.588e-05,2]
[347575498,1735923035845,-500.0,9.588e-05,2]
[347575500,1735923035854,-400.0,9.588e-05,2]
[347575502,1735923035864,-500.0,9.588e-05,2]
[347575504,1735923035873,-500.0,9.588e-05,2]
[347575506,1735923035882,-500.0,9.588e-05,2]
[347575508,1735923035892,-500.0,9.588e-05,2]
[347575510,1735923035901,-500.0,9.588e-05,2]
[347575512,1735923035911,-500.0,9.588e-05,2]
[347575514,1735923035920,-500.0,9.588e-05,2]
[347575516,1735923035930,-652.129567,9.588e-05,2]
[347575518,1735923035939,-500.0,9.588e-05,2]
[347575520,1735923035948,-500.0,9.588e-05,2]
[347575522,1735923035958,-500.0,9.588e-05,2]
[347575524,1735923035967,-500.0,9.588e-05,2]
[347575526,1735923035975,-500.0,9.588e-05,2]
[347575528,1735923035984,-500.0,9.588e-05,2]
[347575530,1735923035993,-500.0,9.588e-05,2]
[347575532,1735923036002,-436.97412,9.588e-05,2]
[347575534,1735923036011,-500.0,9.588e-05,2]
[347575536,1735923036020,-500.0,9.588e-05,2]
[347575538,1735923036030,-171.490028,9.588e-05,2]
[347575540,1735923036039,-500.0,9.588e-05,2]
[347575542,1735923036048,-500.0,9.588e-05,2]
[347575544,1735923036057,-500.0,9.588e-05,2]
[347575546,1735923036066,-500.0,9.588e-05,2]
[347575547,1735923036075,-500.0,9.588e-05,2]
[347575549,1735923036085,-500.0,9.588e-05,2]
[347575550,1735923036093,-500.0,9.588e-05,2]
[347575552,1735923036102,-500.0,9.588e-05,2]
[347575554,1735923036111,-500.0,9.588e-05,2]
[347575556,1735923036120,-500.0,9.588e-05,2]
[347575558,1735923036130,-500.0,9.588e-05,2]
[347575560,1735923036139,-500.0,9.588e-05,2]
[347575562,1735923036148,-500.0,9.588e-05,2]
[347575564,1735923036157,-500.0,9.588e-05,2]
[347575566,1735923036170,-500.0,9.588e-05,2]
[347575568,1735923036181,-500.0,9.588e-05,2]
[347575570,1735923036194,-500.0,9.588e-05,2]
[347575572,1735923036204,-500.0,9.588e-05,2]
[347575574,1735923036213,-500.0,9.588e-05,2]
[347575576,1735923036222,-500.0,9.588e-05,2]
[347575578,1735923036232,-500.0,9.588e-05,2]
[347575580,1735923036244,-500.0,9.588e-05,2]
[347575582,1735923036254,-500.0,9.588e-05,2]
[347575584,1735923036263,-500.0,9.588e-05,2]
[347575586,1735923036273,-500.0,9.588e-05,2]
[347575588,1735923036282,-500.0,9.588e-05,2]
[347575590,1735923036291,-620.56260363,9.588e-05,2]
[347575592,1735923036301,-500.0,9.588e-05,2]
[347575594,1735923036311,-500.0,9.588e-05,2]
[347575596,1735923036321,-500.0,9.588e-05,2]
[347575598,1735923036331,-500.0,9.588e-05,2]
[347575600,1735923036340,-500.0,9.588e-05,2]
[347575602,1735923036349,-500.0,9.588e-05,2]
[347575604,1735923036359,-500.0,9.588e-05,2]
[347575606,1735923036368,-500.0,9.588e-05,2]
[347575608,1735923036377,-517.24,9.588e-05,2]
[347575610,1735923036386,-351.15721417,9.588e-05,2]
[347575612,1735923036395,-500.0,9.588e-05,2]
[347575614,1735923036403,-500.0,9.588e-05,2]
[347575616,1735923036412,-500.0,9.588e-05,2]
[347575617,1735923036421,-500.0,9.588e-05,2]
[347575619,1735923036430,-500.0,9.588e-05,2]
[347575621,1735923036439,-584.2,9.588e-05,2]
[347575623,1735923036449,-500.0,9.588e-05,2]
[347575625,1735923036458,-500.0,9.588e-05,2]
[347575627,1735923036467,-500.0,9.588e-05,2]
[347575629,1735923036476,-500.0,9.588e-05,2]
[347575631,1735923036485,-500.0,9.588e-05,2]
[347575633,1735923036494,-500.0,9.588e-05,2]
[347575635,1735923036503,-500.0,9.588e-05,2]
[347575637,1735923036512,-500.0,9.588e-05,2]
[347575639,1735923036521,-500.0,9.588e-05,2]
[347575641,1735923036531,-500.0,9.588e-05,2]
[347575643,1735923036540,-500.0,9.588e-05,2]
[347575645,1735923036549,-500.0,9.588e-05,2]
[347575647,1735923036558,-500.0,9.588e-05,2]
[347575649,1735923036567,-500.0,9.588e-05,2]
[347575651,1735923036576,-500.0,9.588e-05,2]
[347575653,1735923036587,-539.12,9.588e-05,2]
[347575655,1735923036596,-500.0,9.588e-05,2]
[347575657,1735923036606,-617.7,9.588e-05,2]
[347575659,1735923036615,-500.0,9.588e-05,2]
[347575661,1735923036625,-648.94,9.588e-05,2]
[347575663,1735923036634,-500.0,9.588e-05,2]
[347575664,1735923036643,-500.0,9.588e-05,2]
[347575666,1735923036652,-500.0,9.588e-05,2]
[347575668,1735923036661,-972.46,9.588e-05,2]
[347575670,1735923036670,-500.0,9.588e-05,2]
[347575672,1735923036679,-500.0,9.588e-05,2]
[347575674,1735923036689,-500.0,9.588e-05,2]
[347575676,1735923036698,-500.0,9.588e-05,2]
[347575678,1735923036707,-500.0,9.588e-05,2]
[347575680,1735923036717,-500.0,9.588e-05,2]
[347575682,1735923036726,-623.48,9.588e-05,2]
[347575683,1735923036735,-500.0,9.588e-05,2]
[347575684,1735923036745,-500.0,9.588e-05,2]
[347575685,1735923036754,-367.74814023,9.588e-05,2]
[347575686,1735923036763,-644.27808025,9.588e-05,2]
[347575687,1735923036772,-500.0,9.588e-05,2]
[347575688,1735923036781,-500.0,9.588e-05,2]
[347575689,1735923036791,-500.0,9.588e-05,2]
[347575690,1735923036800,-500.0,9.588e-05,2]
[347575691,1735923036809,-500.0,9.588e-05,2]
[347575692,1735923036820,-500.0,9.588e-05,2]
[347575707,1735923037040,-500.0,9.588e-05,2]
[347575709,1735923037050,-500.0,9.588e-05,2]
[347575711,1735923037059,-500.0,9.588e-05,2]
[347575713,1735923037070,-500.0,9.588e-05,2]
[347575715,1735923037079,-500.0,9.588e-05,2]
[347575717,1735923037089,-500.0,9.588e-05,2]
[347575719,1735923037098,-500.0,9.588e-05,2]
[347575721,1735923037107,-500.0,9.588e-05,2]
[347575723,1735923037116,-500.0,9.588e-05,2]
[347575725,1735923037126,-500.0,9.588e-05,2]
[347575727,1735923037136,-500.0,9.588e-05,2]
[347575729,1735923037145,-500.0,9.588e-05,2]
[347575731,1735923037157,-500.0,9.588e-05,2]
[347575733,1735923037167,-500.0,9.588e-05,2]
[347575735,1735923037176,-500.0,9.588e-05,2]
[347575737,1735923037186,-500.0,9.588e-05,2]
[347575739,1735923037195,-500.0,9.588e-05,2]
[347575741,1735923037206,-500.0,9.588e-05,2]
[347575743,1735923037215,-500.0,9.588e-05,2]
[347575745,1735923037225,-607.88,9.588e-05,2]
[347575747,1735923037236,-500.0,9.588e-05,2]
[347575749,1735923037246,-1977.64,9.588e-05,2]